Cogmind - Beta 15 @@@ ROGUE MODE // 2025.08.24 @ 19:19:27 Player: cptwinky Result: Destroyed by as-72955 with Assembled Blade Performance ------------- Evolutions (0) 0 Regions Visited (4) 800 Robots Destroyed (26) 130 Value Destroyed (632) 632 Prototype IDs (40) 800 Alien Tech Used (0) 0 Bonus (300) 300 TOTAL SCORE: 2662 Bonus ------- Aligned with FarCom 300 Cogmind --------- Core Integrity 0/250 Matter 300/300 Energy 170/170 System Corruption 1% Temperature Warm (143) Movement Rolling (140) Ox4 Location -9/Mines Parts ------- > --- POWER (1) -------- Makeshift Power Source > --- PROPULSION (2) --- Light Treads Wheel > --- UTILITY (2) ------ High-capacity Storage Unit > --- WEAPON (2) ------- Beam Rifle > --- INVENTORY (20) --- Light Nuclear Core Reinforced Deuterium Engine Reinforced Deuterium Engine Light Fission Core Aluminum Leg Aluminum Leg Wheel Wheel Scrap Suit Disposable Heat Sink High-capacity Matter Pod (200) Experimental Sensor Array Seismic Detector Beam Rifle Firepult Assault Rifle Datajack Makeshift Hammer Peak State ------------ > --- POWER ------------ Makeshift Power Source > --- PROPULSION ------- Wheel Wheel > --- UTILITY ---------- Improved Heat Sink High-capacity Storage Unit > --- WEAPON ----------- Beam Rifle Beamcaster > --- INVENTORY -------- Backup Power III Reinforced Deuterium Engine Reinforced Deuterium Engine Light Fission Core Aluminum Leg Aluminum Leg Scrap Suit Disposable Heat Sink High-capacity Matter Pod Experimental Sensor Array Seismic Detector Beam Rifle Firepult Assault Rifle Datajack Makeshift Hammer [Rating: 23] Favorites ----------- Power Backup Power III Engine Backup Power III Propulsion Light Treads Treads Light Treads Wheel Wheel Utility Disposable Heat Sink Device Disposable Heat Sink Storage High-capacity Storage Unit Protection Hardened Light Armor Plating Weapon Beam Rifle Energy Gun Beam Rifle Ballistic Gun Assault Rifle Impact Weapon Makeshift Hammer Special Melee Weapon Datajack Build | -11 -10 -10 -10 -9 ------- Run | Yrd Mat Min Exi Min Slots Evolved . | . . . . . Power . | . . . . . Propulsion . | . . . . . Utility . | . . . . . Weapon . | . . . . . Parts Attached 33 | 6 12 11 . 4 Power 7 | 1 3 1 . 2 Engine 7 | 1 3 1 . 2 Core . | . . . . . Reactor . | . . . . . Propulsion 5 | 2 . 2 . 1 Treads 3 | 2 . . . 1 Leg . | . . . . . Wheel 2 | . . 2 . . Hover . | . . . . . Flight . | . . . . . Utility 10 | 1 5 3 . 1 Device 5 | . 3 2 . . Storage 4 | 1 2 1 . . Processor . | . . . . . Hackware . | . . . . . Protection 1 | . . . . 1 Artifact . | . . . . . Weapon 11 | 2 4 5 . . Energy Gun 6 | 1 3 2 . . Energy Cannon . | . . . . . Ballistic Gun 2 | 1 . 1 . . Ballistic Cannon . | . . . . . Launcher . | . . . . . Special Weapon . | . . . . . Impact Weapon 2 | . 1 1 . . Slashing Weapon . | . . . . . Piercing Weapon . | . . . . . Special Melee Weapon 1 | . . 1 . . Unidentified Prototypes 1 | . . 1 . . Parts Lost 7 | . 2 3 . 2 Power 4 | . 2 1 . 1 Propulsion 2 | . . 2 . . Utility . | . . . . . Weapon 1 | . . . . 1 Highest Loss Streak 3 | . 1 3 . 1 To Critical Strikes . | . . . . . Average Backups 11 | 2 8 9 14 16 Power 1 | . . . 2 3 Propulsion 2 | 1 2 1 2 3 Utility 3 | . 2 3 5 5 Weapon 3 | . 3 2 4 4 Tool/Special . | . . . . . Unused Backups 13 | . 1 . . 12 Power 4 | . . . . 4 Propulsion 5 | . 1 . . 4 Utility 2 | . . . . 2 Weapon 2 | . . . . 2 Tool/Special . | . . . . . Average Slot Usage (%) 98 | . 97 98 100 99 Engine 13 | . 11 13 14 13 Treads 15 | . 28 20 . . Wheel 12 | . . 6 28 27 Device 13 | . 14 14 14 13 Storage 14 | . 14 14 14 14 Energy Gun 21 | . 26 20 . 27 Ballistic Gun 2 | . . 7 . . Impact Weapon 2 | . . . 14 . Special Melee Weapon 1 | . . . 14 . Peak Build Rating 23 | 6 13 19 20 23 Average Rating 15 | 4 10 13 18 21 On Entrance 11 | . 6 13 17 20 Naked Turns . | . . . . . Heaviest Build 57 | 11 22 51 47 57 Greatest Support 40 | 40 40 40 20 20 Greatest Overweight (x) 5 | . . 2 2 5 Average Overweight (x) 1 | . . . 2 2 Largest Inventory Capacity 20 | 8 10 20 20 20 Average Capacity 13 | 6 9 12 20 20 Most Carried 20 | 5 10 12 17 20 Average Carried 12 | 3 8 10 15 18 Final Capacity 20 | 8 10 20 20 20 Final Carried 20 | 5 10 12 17 20 Class Distribution -------------------- 83% | Mutant 14% | Scavenger-Mutant Dominant Class ---------------- Mutant | -10/Materials Mutant | -10/Mines Mutant | -10/Exiles Scavenger-Mutant | -9/Mines Resources | -11 -10 -10 -10 -9 ----------- Run | Yrd Mat Min Exi Min Matter Collected 819 | 235 312 162 . 110 Remotely . | . . . . . Salvage Created 971 | 14 683 134 . 140 Parts 41 | 1 35 5 . . Haulers Intercepted 1 | . 1 . . . Recyclers Shooed 1 | 1 . . . . Parts Field Recycled . | . . . . . Retrieved Matter . | . . . . . Parts Self-Destructed . | . . . . . Prevented . | . . . . . Kills | -11 -10 -10 -10 -9 ------- Run | Yrd Mat Min Exi Min Combat Hostiles Destroyed 30 | . 16 4 . 10 Guns 30 | . 16 4 . 10 Classes Destroyed 8 | 1 6 . . 1 Worker 1 | . 1 . . . Tunneler 2 | 1 1 . . . Hauler 1 | . 1 . . . Recycler 1 | . 1 . . . Mechanic 1 | . 1 . . . Swarmer 5 | . 3 2 . . Grunt 15 | . 13 2 . . Assembled 10 | . . . . 10 Best Kill Streak 6 | 1 6 3 . 3 Combat Bots Only 6 | . 6 3 . 3 Max Kills in Single Turn 2 | 1 2 2 . 1 Gunslinging 1 | . . 1 . . Exploded . | . . . . . Melee . | . . . . . Uniques/NPCs Destroyed . | . . . . . Combat | -11 -10 -10 -10 -9 -------- Run | Yrd Mat Min Exi Min Hostile Shots Fired 119 | . 85 17 . 17 Missed 36 | . 25 4 . 7 Hits 83 | . 60 13 . 10 Melee 5 | . . . . 5 Projectile 78 | . 60 13 . 5 Critical Strikes 2 | . 1 . . 1 Damage Taken 1038 | . 641 160 . 237 Core 252 | . 153 22 . 77 Absorbed by Shields . | . . . . . Core Remaining (%) 100 | 100 . . . . Volleys Fired 88 | 4 52 9 . 23 Largest 2 | 2 2 2 . 2 Hottest 131 | 70 112 131 . 131 Shots Fired 178 | 8 104 19 . 47 Gun 178 | 8 104 19 . 47 Cannon . | . . . . . Launcher . | . . . . . Special . | . . . . . Kinetic 5 | 4 . 1 . . Thermal 173 | 4 104 18 . 47 Explosive . | . . . . . Electromagnetic . | . . . . . Robot Hit Streak 15 | 3 15 4 . 5 Robot Miss Streak 5 | 2 5 2 . 4 Penetration Max . | . . . . . Secondary Targets 1 | . . 1 . . Max Gunslinging Chain 1 | . . 1 . . Shots Hit Robots 110 | 5 65 12 4 24 Core Hits 49 | 2 29 6 . 12 Critical Kills . | . . . . . Critical Parts Destroyed . | . . . . . Critical Strikes 7 | 1 3 1 . 2 Burn 7 | 1 3 1 . 2 Melee Attacks 11 | . 7 . 4 . Impact 7 | . 7 . . . Slashing . | . . . . . Piercing . | . . . . . Sneak Attacks 4 | . . . 4 . Combat Hostiles . | . . . . . Follow-up Attacks . | . . . . . Damage Inflicted 1758 | 46 1025 242 . 445 Guns 1720 | 46 1001 228 . 445 Cannons . | . . . . . Explosions . | . . . . . Melee . | . . . . . Ramming 38 | . 24 14 . . Kinetic 22 | 22 . . . . Thermal 1698 | 24 1001 228 . 445 Explosive . | . . . . . Electromagnetic . | . . . . . Impact . | . . . . . Slashing . | . . . . . Piercing . | . . . . . Highest Corruption 1 | . 1 1 1 1 Average Corruption 1 | . 1 1 1 1 Corruption Purged . | . . . . . Corruption Blocked . | . . . . . Effects 11 | . 1 4 . 6 Message Errors 2 | . . . . 2 Matter Fused 2 | . . 1 . 1 Energy Discharges 3 | . . 2 . 1 Data Loss (minor) 2 | . 1 . . 1 Misfires 2 | . . 1 . 1 Overload Shots . | . . . . . Overflow Damage . | . . . . . Projectiles . | . . . . . Explosions . | . . . . . Melee . | . . . . . Knockbacks 1 | . . 1 . . Impact 1 | . . 1 . . Kinetic . | . . . . . Secondary . | . . . . . Self-Inflicted Damage . | . . . . . Shots . | . . . . . Rammed 10 | . 7 3 . . Targets Rammed 13 | . 10 3 . . Kicked . | . . . . . Crushed 3 | . 3 . . . Highest Temperature 199 | 60 199 177 . 158 Average Temperature 90 | 30 111 71 . 57 Received Heat Transfer 387 | . 318 69 . . Siege Activations . | . . . . . Martial Activations . | . . . . . Shielding Activations . | . . . . . Robots Disrupted . | . . . . . Combat Hostiles . | . . . . . Robots Corrupted . | . . . . . Combat Hostiles . | . . . . . Parts Fried . | . . . . . Impact Corruptions . | . . . . . Robots Melted . | . . . . . Combat Hostiles . | . . . . . Parts Melted 5 | 1 4 . . . Heat Transferred 4551 | 148 2775 555 . 1073 Parts Sabotaged . | . . . . . Parts Stolen . | . . . . . Parts Stripped . | . . . . . Power Chain Reactions . | . . . . . Alert | -11 -10 -10 -10 -9 ------- Run | Yrd Mat Min Exi Min Maximum Alert Level . | . . . . . Low Security (%) 100 | 100 100 100 . 100 Level 1 . | . . . . . Level 2 . | . . . . . Level 3 . | . . . . . Level 4 . | . . . . . Level 5 . | . . . . . High Security . | . . . . . Max Security . | . . . . . Peak Influence 179 | 5 179 50 . . Initial 50 | . . 50 . . Average 35 | 1 85 9 . . Influence Increases 619 | 5 524 90 . . Destroy 0b10 Robot/C 400 | . 320 80 . . Destroy 0b10 Robot/NC 30 | 5 25 . . . Destroy Leader 72 | . 62 10 . . Successful Hack 24 | . 24 . . . Select Force Hacks 60 | . 60 . . . Disable Machine 15 | . 15 . . . Destroy Structure 3 | . 3 . . . Lose Combat Pursuer 15 | . 15 . . . Influence Decreases 619 | 5 394 220 . . Entered New Map 80 | . . 80 . . Time Decay 499 | 5 374 120 . . Lost Part 40 | . 20 20 . . Squads Dispatched 4 | . 4 . . . Investigation 4 | . 4 . . . Extermination . | . . . . . Reinforcement . | . . . . . Assault . | . . . . . Garrison . | . . . . . Intercept . | . . . . . Searches Triggered . | . . . . . Construction Impeded . | . . . . . Haulers Reinforced . | . . . . . Active Scanning Responses . | . . . . . Cargo Convoy Interrupts . | . . . . . Stealth | -11 -10 -10 -10 -9 --------- Run | Yrd Mat Min Exi Min Distress Signals 1 | . 1 . . . Communications Jammed . | . . . . . Distress Signals . | . . . . . Times Spotted 45 | . 24 4 . 17 Peak Tracking Total 7 | . 7 3 . 4 Tactical Retreats 4 | . 1 . . 3 Traps | -11 -10 -10 -10 -9 ------- Run | Yrd Mat Min Exi Min Traps Triggered 1 | . 1 . . . Indirectly . | . . . . . Trap Hack Attempts . | . . . . . Triggered . | . . . . . Disarmed . | . . . . . Reprogrammed . | . . . . . Reused . | . . . . . Traps Extracted . | . . . . . Installed . | . . . . . Triggered . | . . . . . Machines | -11 -10 -10 -10 -9 ---------- Run | Yrd Mat Min Exi Min Machines Disabled 2 | . 2 . . . Max in Single Turn 1 | . 1 . . . Machines Repaired . | . . . . . Machines Dismantled . | . . . . . Machines Sabotaged . | . . . . . Overloaded Fab Kills . | . . . . . Hacking | -11 -10 -10 -10 -9 --------- Run | Yrd Mat Min Exi Min Machines Accessed 10 | . 8 . 2 . Terminals 5 | . 5 . . . Fabricators . | . . . . . Repair Stations 1 | . 1 . . . Recycling Units 2 | . 2 . . . Scanalyzers . | . . . . . Garrison Access . | . . . . . Total Hacks 22 | . 20 . 2 . Successful 13 | . 11 . 2 . Failed 8 | . 8 . . . Catastrophic 1 | . 1 . . . Database Lockouts 1 | . 1 . . . Manual 12 | . 11 . 1 . Terminals 14 | . 14 . . . Fabricators . | . . . . . Repair Stations 2 | . 2 . . . Recycling Units 4 | . 4 . . . Scanalyzers . | . . . . . Garrison Access . | . . . . . Terminal Hacks 9 | . 7 . 2 . Record 1 | . . . 1 . Part Schematic 2 | . 2 . . . Robot Analysis 2 | . 2 . . . Prototype ID Bank 1 | . 1 . . . Locate Traps 1 | . 1 . . . Zone Layout 1 | . 1 . . . Proto ID Catalog 1 | . . . 1 . Fabricator Hacks . | . . . . . Repair Station Hacks . | . . . . . Recycling Unit Hacks 1 | . 1 . . . Retrieve Components 1 | . 1 . . . Scanalyzer . | . . . . . Garrison Access Hacks . | . . . . . Unauthorized Hacks 3 | . 3 . . . Terminals 1 | . 1 . . . Botnet 1 | . 1 . . . Fabricators . | . . . . . Repair Stations . | . . . . . Recycling Units 2 | . 2 . . . Tunnel 2 | . 2 . . . Scanalyzers . | . . . . . Garrison Access . | . . . . . Data Cores Recovered . | . . . . . Used . | . . . . . Hacking Detections 7 | . 7 . . . Full Trace Events 2 | . 2 . . . Feedback Events 1 | . 1 . . . Corruption 1 | . 1 . . . Feedback Blocked . | . . . . . Robot Schematics Acquired . | . . . . . Robots Built . | . . . . . Authchips . | . . . . . Time . | . . . . . Total Robot Build Rating . | . . . . . Part Schematics Acquired 2 | . 2 . . . Parts Built . | . . . . . Authchips . | . . . . . Time . | . . . . . Total Part Build Rating . | . . . . . Parts Repaired . | . . . . . Time . | . . . . . Parts Recycled . | . . . . . Recycled Matter . | . . . . . Retrieved Matter . | . . . . . Retrieved Components 1 | . 1 . . . Parts Scanalyzed . | . . . . . Part Schematics Acquired . | . . . . . Parts Damaged . | . . . . . Bothacking | -11 -10 -10 -10 -9 ------------ Run | Yrd Mat Min Exi Min Used RIF Installer . | . . . . . Robots Hacked 4 | . . . 4 . Non-combat 3 | . . . 3 . Combat 1 | . . . 1 . Robot Hacks Applied 4 | . . . 4 . parse_system 4 | . . . 4 . Relay Couplers Released . | . . . . . Fabnet Peak Effective % . | . . . . . Robots Rewired . | . . . . . Allies Hacked . | . . . . . Hacks Repelled . | . . . . . Allies | -11 -10 -10 -10 -9 -------- Run | Yrd Mat Min Exi Min Total Allies 3 | . . . . 3 Largest Group 3 | . . . . 3 Highest-Rated Group 40 | . . . . 40 Highest-Rated Ally 16 | . . . . 16 Total Orders 6 | . . . . 6 STAY 5 | . . . . 5 FOLLOW 1 | . . . . 1 Ally Attacks 36 | . . . . 36 Total Damage 233 | . . . . 233 Kills 2 | . . . . 2 Allies Corrupted . | . . . . . Allies Melted . | . . . . . Intel | -11 -10 -10 -10 -9 ------- Run | Yrd Mat Min Exi Min Active Infowar (turns) 45 | . 43 2 . . Sensors 2 | . . 2 . . Seismic 43 | . 43 . . . Robot Analysis Total 2 | . 2 . . . Derelict Logs Recovered 2 | . . 1 . 1 Drone Launches . | . . . . . Drone Recoveries . | . . . . . Exploration | -11 -10 -10 -10 -9 ------------- Run | Yrd Mat Min Exi Min Turns Passed 2528 | 92 862 620 303 651 Spaces Moved 1395 | 43 350 381 267 354 Core 2 | 2 . . . . Treads 646 | 41 350 255 . . Legs . | . . . . . Wheels 747 | . . 126 267 354 Hover . | . . . . . Flight . | . . . . . Fastest Speed 50 | 50 160 80 110 110 Average Speed 133 | 154 160 143 110 111 Slowest Speed 240 | 160 160 240 110 155 Overloaded Moves . | . . . . . Propulsion Burnouts . | . . . . . Robots Hopped . | . . . . . Potential Cave-ins . | . . . . . Cave-ins Triggered . | . . . . . Exploration Rate (%) 53 | 4 48 78 66 69 Regions Visited 4 Branch Regions 3 Pre-discovered Areas 4 | . 2 1 1 . Known Exits Taken . | . . . . . Unknown Exits Taken 4 | 1 1 1 1 . Scrap Searched 1 | . . . . 1 Spaces Dug . | . . . . . Terrain Destroyed 1 | . . . . 1 Melee . | . . . . . Projectile 1 | . . . . 1 AOE . | . . . . . Terrain Rammed . | . . . . . Walls Destroyed . | . . . . . Machines Disabled . | . . . . . Actions | -11 -10 -10 -10 -9 --------- Run | Yrd Mat Min Exi Min Total 1862 | 59 530 436 274 563 Wait 262 | 1 78 13 . 170 Move 1391 | 42 349 380 266 354 Hop . | . . . . . Pick Up 31 | 6 9 8 4 4 Fast Attach 18 | 5 4 6 . 3 Attach 7 | 1 2 3 . 1 Detach 4 | . 3 . . 1 Swap 16 | . 8 4 . 4 Drop 21 | . 8 10 . 3 Fire 88 | 4 52 9 . 23 Melee 11 | . 7 . 4 . Ram . | . . . . . Kick . | . . . . . Crush 13 | . 10 3 . . Escape Stasis . | . . . . . Rewire . | . . . . . Trap . | . . . . . Miscellaneous . | . . . . . Route ------- -11/Scrapyard -10/Materials -10/Mines (discovered 3 exits: [*Mat x2] / *Exi) -10/Exiles -9/Mines History --------- Turn | Location | Event 6 | -11/Scrapyard | Discovered new exit (range 15) 93 | -11/Scrapyard | Entered Materials 320 | -10/Materials | Discovered new exit (range 15) 338 | -10/Materials | Build established: Mutant 548 | -10/Materials | Central database locked down 739 | -10/Materials | Core integrity fell below 50% 955 | -10/Materials | Entered Mines 997 | -10/Mines | Met a Derelict bent on vengeance 1182 | -10/Mines | Discovered new exit (range 12) 1244 | -10/Mines | Discovered new exit (range 6) 1249 | -10/Mines | Learned location of Zion (-7) 1284 | -10/Mines | Found a Scrap Suit stashed away for nefarious purposes 1290 | -10/Mines | Found Scrap Suit 1317 | -10/Mines | Found a damaged Exp. Sensor Array with a note attached 1320 | -10/Mines | Found Prototype Device 1320 | -10/Mines | Identified Exp. Sensor Array 1439 | -10/Mines | Lost 3 parts (1p2n) 1456 | -10/Mines | A weapon hastily lodged in a ceiling crevice suddenly fell to the ground 1568 | -10/Mines | Deemed a non-threat by the Exiles lab entrance 1568 | -10/Mines | Discovered new exit (range 5) 1575 | -10/Mines | Entered Exiles 1609 | -10/Exiles | Met 8R-AWN 1629 | -10/Exiles | Met EX-HEX 1673 | -10/Exiles | Met EX-DEC 1723 | -10/Exiles | Met EX-BIN 1740 | -10/Exiles | Aligned with FarCom system 1741 | -10/Exiles | Given EX-Vault access code 1766 | -10/Exiles | Opened EX-Vault 1774 | -10/Exiles | Found Firepult 1798 | -10/Exiles | Warned to stay clear of 0b10 Research branches 1812 | -10/Exiles | Exiles lab attacked by MAIN.C 1869 | -10/Exiles | Discovered new exit (range 10) 1878 | -10/Exiles | Left Exiles lab with Firepult 1878 | -10/Exiles | Entered Mines 1920 | -9/Mines | Assembled infested the area 1923 | -9/Mines | Learned 4 Materials zone layouts 1925 | -9/Mines | Assisted by a Guerilla fighting off Assembled 1929 | -9/Mines | Assisted by bots powering up and referring to "LRC-V3" 2291 | -9/Mines | Lost 3 allies 2401 | -9/Mines | Build established: Scavenger-Mutant 2403 | -9/Mines | Core integrity fell below 20% 2529 | -9/Mines | Destroyed by as-72955 with Assembled Blade Last Messages --------------- 02494_ U-05 Engineer lays Concrete. 02497_ U-05 Engineer builds a Wall. 02499_ Searching scrap... 02499_ Found Shotgun. 02499_ Found Lgt. Treads. 02499_ Found Hrd. Light Armor Plating. 02499_ Found 44 Matter. 02501_ Dropped Imp. Heat Sink. 02502_ Acquired Hrd. Light Armor Plating. 02504_ Dropped Wheel. 02505_ Acquired Lgt. Treads. 02509_ U-05 Engineer lays Concrete. 02513_ U-05 Engineer builds a Wall. 02514_ U-05 Engineer lays Concrete. 02519_ as-98120 destroyed. 02519_ U-05 Engineer destroyed. 02521_ as-21112 sneak attacks. 02522_ Acquired 20 matter. 02526_ Hrd. Light Armor Plating severed. 02529_ Beamcaster destroyed. Map ----- +----------------------------------------------------+ | ########## #?????????????## ==*!##????????????? | | #?????????##### %=|=!#???#????????? | | ####%##### *##???????## = !==!=*##|=#????????? | | ##?#%#####= =##????### *%= =%!%=%!*%%##???????? | | ### [% =% !%*#???## !!*=%!!*=%*????????? | | ## #### *%*%##### %= %!=%!#?????????????? | | ## #??## = |!## % *#????????????????? | | #?# #???### ## ##????????????????? | | #?# #?????## % % ###= ###?????????????????? | | ### #?????## ####?#%*##??????????????????? | | ## ###???# ##???## ##??????????????????? | | ## #???# ####?## ##??????????????????? | | #### #???## #### #??????????????????? | | #??#%#????####### # # ###?????????????????? | | ##??#=###????????## # # #?????????????????? | | ##??##%[ ##?????????# ## #?##??????????????? | | ???##*= ##?????????#### # #? ???????????????? | | #### ##?????????### ### #???????????????? | | # ##???????## #% ##? ####????????????? | | #???????# ## ##???????????? | | ## #??????# # # ##|% #???????????? | | "#?###?????###### # %a%!* #???????????? | | #????????## ?# # !%#%=! #???????????? | | ##???????##% !## # #!*% #???????????? | | ###????????# !=%=a ! !*!% #??????? | | ##????????# !!%!==@[ ###= #??????? | | ####????????# =|! #######??? ?????? | | ##??????????# %=|% ?????????? % ?????? | | ##????????? ##*#???????????? ?????? | | #?????????? ??##?????????????%=# # $ ??????? | | ??????????? ????????????????????! #?# ??????? | | ??????????? ??????????????????????!!=#??????????? | | ????????????????????????????????????# ???????????? | | ###??????????????????????????????????# ??????????? | | | #??????????????????????????????????????????????? | | # #??????????????????????????????????????????????? | | # #??????????????????????????????????????????????? | | # #??????????????????????????????????????????????? | | # #??????????????????????????????????????????????? | | # ######## ????????????????????????????????? | | ????????????????????????????????? | | ????????????????????????????????? | | ## ####### ?????????????????????????????????????? | | ## #?????????????????????????????????????????????? | | ## #?????????????????????????????????????????????? | | ## #??????????????????####???????????????????????? | | ## ########??????????## ##??????????????????????? | | ## #?????????## ##?????????????????????? | | ######### #????????## ##????????????????????? | | #???????# ########## #????????????????????? | +----------------------------------------------------+ Best States ------------- Heat Dissipation 39 Coolant Potential 50 Energy Generation 18 Energy Capacity 250 Matter Stores 300 Matter Capacity 300 Sight Range 16 Terrain Scan Density 10 Armor Coverage 150 Evasion (%) 41 Recoil Reduction 2 Item Schematics ----------------- Cargo Storage Unit | -10/Materials | Hacked Huge Storage Unit | -10/Materials | Hacked Robot Schematics ------------------ None Fabricated ------------ Nothing Repaired ---------- Nothing Alien Tech Used ----------------- None Achievements -------------- None Challenges ------------ None Game ------ Seed RelayBarrageSheargun Manual? 0 Play Time 00:17:08 Cumulative 1919.1 hours Start 2025.08.24 @ 19:05:39 End 2025.08.24 @ 19:19:27 Sessions 1 Manual Loads 0 Difficulty Rogue Special Mode None Game No. 1262 Rogue 1258 Adventurer 4 Explorer 0 Win Type - Total 251 Types 187/12/19/10/3/1/4/9/4/2 Lore% 98 Gallery% 97 Achievement% 98 Wizard Run 0 Options --------- Layout 2 ASCII 0 Keyboard 1 Movement Vi Keybinds 0 Fullscreen 0 Font 24/Terminus Map View 59x48 Zoom Use 0% Tactical HUD 1 Map Filters NONE Filters NONE Steam 1 RUN: fcca585b-545a-4b9e-81c4-a58526ca3f84